fUST/lending_fUST_20260412
["ID","MTS","AMOUNT","RATE_DAILY","PERIOD"]
[420332639,1775980246728,-500.0,0.00016438,2]
[420332640,1775980246738,-500.0,0.00016438,2]
[420332641,1775980246747,-500.0,0.00016438,2]
[420332642,1775980246756,-500.0,0.00016438,2]
[420332643,1775980246766,-500.0,0.00016438,2]
[420332645,1775980246777,-500.0,0.00016438,2]
[420332646,1775980246786,-500.0,0.00016438,2]
[420332647,1775980246795,-500.0,0.00016438,2]
[420332648,1775980246805,-500.0,0.00016438,2]
[420332649,1775980246816,-500.0,0.00016438,2]
[420332650,1775980246827,-500.0,0.00016438,2]
[420332651,1775980246837,-500.0,0.00016438,2]
[420332652,1775980246846,-500.0,0.00016438,2]
[420332653,1775980246855,-2316.88,0.00016438,2]
[420332654,1775980246867,-500.0,0.00016438,2]
[420332655,1775980246876,-500.0,0.00016438,2]
[420332656,1775980246887,-500.0,0.00016438,2]
[420332657,1775980246897,-331.77900285,0.00016438,2]
[420332658,1775980246910,-500.0,0.00016438,2]
[420332659,1775980246919,-866.52,0.00016438,2]
[420332660,1775980246929,-500.0,0.00016438,2]
[420332661,1775980246938,-500.0,0.00016438,2]
[420332662,1775980246951,-500.0,0.00016438,2]
[420332663,1775980246961,-500.0,0.00016438,2]
[420332664,1775980246973,-500.0,0.00016438,2]
[420332665,1775980246982,-1633.12,0.00016438,2]
[420332666,1775980246997,-500.0,0.00016438,2]
[420332667,1775980247010,-500.0,0.00016438,2]
[420332668,1775980247019,-500.0,0.00016438,2]
[420332669,1775980247029,-500.0,0.00016438,2]
[420332671,1775980247045,-716.6,0.00016438,2]
[420332673,1775980247057,-500.0,0.00016438,2]
[420332674,1775980247066,-500.0,0.00016438,2]
[420332676,1775980247079,-500.0,0.00016438,2]
[420332678,1775980247095,-500.0,0.00016438,2]
[420332679,1775980247104,-5573.78,0.00016438,2]
[420332680,1775980247119,-500.0,0.00016438,2]
[420332681,1775980247131,-500.0,0.00016438,2]
[420332682,1775980247143,-500.0,0.00016438,2]
[420332683,1775980247160,-500.0,0.00016438,2]
[420332684,1775980247174,-500.0,0.00016438,2]
[420332685,1775980247185,-417.65659614,0.00016438,2]
[420332686,1775980247223,-82.34340386,0.00016438,2]
[420332687,1775980247249,-500.0,0.00016438,2]
[420332688,1775980247267,-500.0,0.00016438,2]
[420332689,1775980247283,-500.0,0.00016438,2]
[420332690,1775980247295,-2806.4,0.00016438,2]
[420332691,1775980247311,-213.58920392,0.00016438,2]
[420332713,1775981432741,-654.99003784,0.00013699,2]
[420332715,1775981432764,-345.00996216,0.00013699,2]
[420332717,1775981432776,-183.99776872,0.00013699,2]
[420332721,1775981432807,-431.00223128,0.00013699,2]
[420332724,1775981432820,-43.03547278,0.00014223,2]
[420332790,1775981438959,-206.96689022,0.00014223,2]
[420332793,1775981438987,-160.0,0.00014471,2]
[420332795,1775981439003,-1000.0,0.00014902,2]
[420332797,1775981439015,-160.0,0.00015,2]
[420332799,1775981439031,-200.0,0.000155,2]
[420332801,1775981439047,-331.757,0.00015692,2]
[420332802,1775981439058,-184.0,0.00015692,2]
[420332805,1775981439071,-441.0,0.00015692,2]
[420332807,1775981439081,-797.0,0.00015869,2]
[420332808,1775981439093,-1200.0,0.0001596,2]
[420332810,1775981439102,-177.0,0.00015961,2]
[420332812,1775981439117,-252.39256984,0.00016124,2]
[420332814,1775981439127,-565.14697236,0.00016137,2]
[420332816,1775981439137,-300.0,0.00016235,2]
[420332818,1775981439146,-300.0,0.00016235,2]
[420332820,1775981439160,-285.32033084,0.00016236,2]
[420332822,1775981439169,-500.0,0.00016236,2]
[420332824,1775981439179,-500.0,0.00016236,2]
[420332826,1775981439190,-240.17765221,0.00016236,2]
[420332829,1775981439204,-500.0,0.00016236,2]
[420332831,1775981439214,-500.0,0.00016236,2]
[420332833,1775981439223,-500.0,0.00016236,2]
[420332835,1775981439233,-500.0,0.00016236,2]
[420332837,1775981439247,-500.0,0.00016236,2]
[420332839,1775981439257,-500.0,0.00016236,2]
[420332841,1775981439267,-500.0,0.00016236,2]
[420332843,1775981439276,-500.0,0.00016236,2]
[420332845,1775981439286,-500.0,0.00016236,2]
[420332847,1775981439298,-242.51905691,0.00016236,2]
[420332849,1775981439308,-500.0,0.00016236,2]
[420332851,1775981439318,-500.0,0.00016236,2]
[420332853,1775981439327,-500.0,0.00016236,2]
[420332855,1775981439337,-500.0,0.00016236,2]
[420332857,1775981439347,-500.0,0.00016236,2]
[420332859,1775981439357,-500.0,0.00016236,2]
[420332861,1775981439367,-500.0,0.00016236,2]
[420332863,1775981439379,-500.0,0.00016236,2]
[420332865,1775981439389,-500.0,0.00016236,2]
[420332867,1775981439399,-500.0,0.00016236,2]
[420332869,1775981439409,-500.0,0.00016236,2]
[420332871,1775981439421,-500.0,0.00016236,2]
[420332873,1775981439432,-500.0,0.00016236,2]
[420332875,1775981439442,-500.0,0.00016236,2]
[420332893,1775981439619,-500.0,0.00016236,2]
[420332895,1775981439631,-500.0,0.00016236,2]
[420332897,1775981439641,-500.0,0.00016236,2]
[420332899,1775981439651,-500.0,0.00016236,2]
[420332901,1775981439661,-500.0,0.00016236,2]
[420332903,1775981439670,-450.0,0.00016236,2]
[420332906,1775981439684,-500.0,0.00016236,2]
[420332907,1775981439695,-500.0,0.00016236,2]
[420332908,1775981439704,-500.0,0.00016236,2]
[420332909,1775981439717,-500.0,0.00016236,2]
[420332910,1775981439726,-500.0,0.00016236,2]
[420332911,1775981439737,-500.0,0.00016236,2]
[420332912,1775981439747,-500.0,0.00016236,2]
[420332913,1775981439762,-500.0,0.00016236,2]
[420332914,1775981439771,-500.0,0.00016236,2]
[420332915,1775981439781,-500.0,0.00016236,2]
[420332916,1775981439791,-500.0,0.00016236,2]
[420332917,1775981439806,-500.0,0.00016236,2]
[420332918,1775981439816,-500.0,0.00016236,2]
[420332919,1775981439825,-500.0,0.00016236,2]
[420332920,1775981439835,-500.0,0.00016236,2]
[420332921,1775981439855,-500.0,0.00016236,2]
[420332922,1775981439865,-500.0,0.00016236,2]
[420332923,1775981439875,-500.0,0.00016236,2]
[420332924,1775981439893,-500.0,0.00016236,2]
[420332925,1775981439909,-500.0,0.00016236,2]
[420332926,1775981439918,-250.0,0.00016236,2]
[420332927,1775981439945,-693.28904179,0.00016237,2]
[420332928,1775981439957,-693.28904179,0.00016237,2]
[420332929,1775981439985,-693.28904179,0.00016237,2]
[420332930,1775981439999,-693.28904179,0.00016237,2]
[420332931,1775981440022,-693.28904179,0.00016237,2]
[420332932,1775981440043,-693.28904179,0.00016237,2]
[420332933,1775981440057,-693.28904179,0.00016237,2]
[420332934,1775981440081,-500.0,0.00016237,2]
[420332935,1775981440095,-542.15363224,0.00016237,2]
[420332936,1775981440114,-500.0,0.00016237,2]
[420332937,1775981440127,-693.28904179,0.00016237,2]
[420332938,1775981440144,-693.28904179,0.00016237,2]
[420332939,1775981440159,-500.0,0.00016237,2]
[420332940,1775981440171,-693.28904179,0.00016237,2]
[420332941,1775981440189,-500.0,0.00016237,2]
[420332942,1775981440209,-500.0,0.00016237,2]
[420332943,1775981440223,-693.28904179,0.00016237,2]
[420332944,1775981440236,-693.28904179,0.00016237,2]
[420332945,1775981440254,-693.28904179,0.00016237,2]
[420332946,1775981440269,-500.0,0.00016237,2]
[420332947,1775981440289,-378.56132189,0.00016237,2]
[420332948,1775981440301,-693.28904179,0.00016237,2]
[420332949,1775981440315,-450.0,0.00016237,2]
[420332950,1775981440328,-713.09730013,0.00016237,2]
[420332951,1775981440338,-713.09730013,0.00016237,2]
[420332952,1775981440350,-713.09730013,0.00016237,2]
[420332953,1775981440364,-109.62595788,0.00016237,2]
[420333018,1775981446802,-764.0,0.00016237,2]
[420333019,1775981446817,-603.47134225,0.00016237,2]
[420333020,1775981446838,-713.09730013,0.00016237,2]
[420333021,1775981446849,-373.86525034,0.00016237,2]
[420333022,1775981446886,-339.23204979,0.00016237,2]
[420333023,1775981446908,-713.09730013,0.00016237,2]
[420333024,1775981446930,-713.09730013,0.00016237,2]
[420333025,1775981446943,-791.11853414,0.00016237,2]
[420333026,1775981446958,-791.11853414,0.00016237,2]
[420333027,1775981446977,-267.11981269,0.00016237,2]
[420333028,1775981446989,-523.99872145,0.00016237,2]
[420333029,1775981446998,-606.90941575,0.00016237,2]
[420333129,1775982602527,155.81,2e-05,2]
[420333130,1775982624998,-155.81,2.2e-05,2]
[420333131,1775982625037,-155.81,2.5e-05,2]
[420333132,1775982625073,-155.81,2.7e-05,2]
[420333133,1775982625109,-155.81,2.9e-05,2]
[420333134,1775982625141,-155.81,3.2e-05,2]
[420333135,1775982625185,-155.81,3.4e-05,2]
[420333136,1775982625229,-155.81,3.6e-05,2]
[420333137,1775982625285,-155.81,3.8e-05,2]
[420333145,1775982633316,-155.81,4.1e-05,2]
[420333147,1775982633326,-155.81,4.3e-05,2]
[420333149,1775982633345,-155.81,4.5e-05,2]
[420333151,1775982633361,-155.81,4.8e-05,2]
[420333164,1775982633587,-155.81,5e-05,2]
[420333166,1775982633601,-111.95,0.0001,2]
[420333169,1775982633640,-108.06042186,0.0001,2]
[420333171,1775982633654,-234.97908953,0.0001,2]
[420333173,1775982633673,-170.22170177,0.00013128,2]
[420333175,1775982633705,-1676.59427923,0.00013399,2]
[420333177,1775982633735,-1000.0,0.00013699,2]
[420333179,1775982633746,-174.4696821,0.0001485,2]
[420333181,1775982633783,-656.2671283,0.00015162,2]
[420333183,1775982633794,-194.6974474,0.00015227,2]
[420333184,1775982633805,-177.0,0.00015467,2]
[420333186,1775982633819,-1200.0,0.00015691,2]
[420333188,1775982633830,-441.0,0.00015692,2]
[420333190,1775982633841,-184.0,0.00015692,2]
[420333192,1775982633851,-935.0,0.00015869,2]
[420333193,1775982633868,-277.0,0.00015869,2]
[420333195,1775982633878,-500.0,0.00015935,2]
[420333197,1775982633899,-500.0,0.00015935,2]
[420333199,1775982633910,-500.0,0.00015935,2]
[420333201,1775982633919,-500.0,0.00015935,2]
[420333203,1775982633929,-500.0,0.00015935,2]
[420333205,1775982633949,-500.0,0.00015935,2]
[420333208,1775982633967,-500.0,0.00015935,2]
[420333209,1775982633977,-514.33544202,0.00015935,2]
[420333210,1775982633989,-500.0,0.00015935,2]
[420333212,1775982634003,-500.0,0.00015935,2]
[420333214,1775982634013,-500.0,0.00015935,2]
[420333216,1775982634024,-500.0,0.00015935,2]
[420333218,1775982634037,-500.0,0.00015935,2]
[420333220,1775982634048,-500.0,0.00015935,2]
[420333222,1775982634058,-500.0,0.00015935,2]
[420333224,1775982634073,-500.0,0.00015935,2]
[420333226,1775982634089,-500.0,0.00015935,2]
[420333229,1775982634101,-494.50360085,0.00015935,2]
[420333231,1775982634119,-272.01557695,0.00015935,2]
[420333233,1775982634132,-27.98442305,0.00015935,2]
[420333235,1775982634142,-300.0,0.00015935,2]
[420333237,1775982634163,-172.01557695,0.00015935,2]
[420333490,1775982638396,-64.98442305,0.00015935,2]
[420333491,1775982638406,-300.0,0.00015935,2]
[420333492,1775982638423,-857.0,0.00015935,2]
[420333493,1775982638434,-830.0,0.00015935,2]
[420333494,1775982638444,-16008.69907965,0.00015936,2]
[420333495,1775982638461,-3583.73877053,0.00015936,2]
[420333496,1775982638485,-26513.76259105,0.00015936,2]
[420333860,1775982646089,-5724.71910227,0.00015936,2]
[420333862,1775982646101,-824.0,0.00015936,2]
[420333864,1775982646115,-8692.0,0.00016,2]
[420333866,1775982646123,-45.92421807,0.00016035,2]
[420333869,1775982646151,-454.07578193,0.00016035,2]
[420333871,1775982646162,-482.3313782,0.00016035,2]
[420333873,1775982646176,-500.0,0.00016035,2]
[420333875,1775982646185,-500.0,0.00016035,2]
[420333877,1775982646194,-414.04107756,0.00016035,2]
[420333879,1775982646202,-500.0,0.00016035,2]
[420333881,1775982646215,-500.0,0.00016035,2]
[420333883,1775982646226,-500.0,0.00016035,2]
[420333885,1775982646235,-500.0,0.00016035,2]
[420333887,1775982646245,-500.0,0.00016035,2]
[420333889,1775982646255,-500.0,0.00016035,2]
[420333891,1775982646270,-500.0,0.00016035,2]
[420333893,1775982646279,-500.0,0.00016035,2]
[420333895,1775982646288,-684.79781447,0.00016035,2]
[420333897,1775982646306,-684.79781447,0.00016035,2]
[420333899,1775982646315,-500.0,0.00016035,2]
[420333901,1775982646324,-684.79781447,0.00016035,2]
[420333903,1775982646334,-684.79781447,0.00016035,2]
[420333905,1775982646351,-204.76490124,0.00016035,2]
[420333907,1775982646367,-684.79781447,0.00016035,2]
[420333909,1775982646375,-684.79781447,0.00016035,2]
[420333911,1775982646385,-684.79781447,0.00016035,2]
[420333913,1775982646397,-500.0,0.00016035,2]
[420333915,1775982646410,-684.79781447,0.00016035,2]
[420333917,1775982646419,-684.79781447,0.00016035,2]
[420333919,1775982646428,-684.79781447,0.00016035,2]
[420333921,1775982646440,-684.79781447,0.00016035,2]
[420333923,1775982646454,-684.79781447,0.00016035,2]
[420333925,1775982646476,-684.79781447,0.00016035,2]
[420333927,1775982646485,-684.79781447,0.00016035,2]
[420333929,1775982646506,-743.0056287,0.00016035,2]
[420333931,1775982646517,-743.0056287,0.00016035,2]
[420333933,1775982646526,-743.0056287,0.00016035,2]
[420333935,1775982646546,-743.0056287,0.00016035,2]
[420333937,1775982646559,-743.0056287,0.00016035,2]
[420333939,1775982646571,-743.0056287,0.00016035,2]
[420333941,1775982646590,-28689.96329599,0.00016036,2]
[420334077,1775982648733,-791.0,0.00016035,2]
[420334078,1775982648748,-1341.14251281,0.00016036,2]
[420334169,1775983831946,-532.0,7.999e-05,2]
[420334170,1775983831958,-4921.627725,8e-05,2]
[420334171,1775983831975,-336.95,8.9e-05,30]
[420334172,1775983831990,-177.0,0.0001,2]
[420334173,1775983832000,-339.64428275,0.0001007,2]
[420334174,1775983832029,-250.0,0.00010569,2]
[420334175,1775983832038,-500.0,0.000106,2]
[420334176,1775983832055,-500.0,0.0001113,2]
[420334177,1775983832082,-1200.0,0.00011685,2]
[420334178,1775983832094,-500.0,0.00011687,2]
[420334179,1775983832109,-300.0,0.00011998,2]
[420334180,1775983832123,-204.0,0.00011999,2]
[420334181,1775983832134,-1680.0,0.00012854,2]
[420334182,1775983832147,-215.94839787,0.00013365,14]
[420334183,1775983832165,-1000.0,0.00013699,2]
[420334184,1775983832178,-1000.0,0.00013699,2]
[420334185,1775983832203,-231.0,0.00014,2]
[420334186,1775983832214,-1797.0,0.00014139,2]
[420334187,1775983832226,-500.0,0.00014245,2]
[420334188,1775983832239,-500.0,0.00014245,2]
[420334189,1775983832250,-500.0,0.00014245,2]
[420334190,1775983832262,-7478.5775848,0.00014246,2]
[420334191,1775983832278,-2150.738,0.00015406,2]
[420334193,1775983832288,-441.0,0.00015604,2]
[420334195,1775983832300,-184.0,0.00015604,2]
[420334196,1775983832325,-205.24073344,0.00015833,2]
[420334198,1775983832335,-500.0,0.00015932,2]
[420334200,1775983832359,-500.0,0.00015932,2]
[420334202,1775983832369,-37.25503075,0.00015932,2]
[420334205,1775983832381,-462.74496925,0.00015932,2]
[420334207,1775983832413,-566.49078796,0.00015932,2]
[420334209,1775983832423,-500.0,0.00015932,2]
[420334211,1775983832435,-500.0,0.00015932,2]
[420334213,1775983832458,-192.36714371,0.00015932,2]
[420334215,1775983832470,-500.0,0.00015932,2]
[420334218,1775983832498,-500.0,0.00015932,2]
[420334220,1775983832528,-500.0,0.00015932,2]
[420334222,1775983832537,-500.0,0.00015932,2]
[420334224,1775983832553,-500.0,0.00015932,2]
[420334226,1775983832569,-500.0,0.00015932,2]
[420334228,1775983832578,-500.0,0.00015932,2]
[420334230,1775983832596,-500.0,0.00015932,2]
[420334232,1775983832611,-500.0,0.00015932,2]
[420334234,1775983832634,-500.0,0.00015932,2]
[420334236,1775983832646,-500.0,0.00015932,2]
[420334238,1775983832663,-500.0,0.00015932,2]
[420334240,1775983832679,-500.0,0.00015932,2]
[420334242,1775983832692,-569.7310644,0.00015932,2]
[420334245,1775983832707,-500.0,0.00015932,2]
[420334246,1775983832724,-500.0,0.00015932,2]
[420334249,1775983832742,-500.0,0.00015932,2]
[420334251,1775983832752,-510.82760992,0.00015932,2]
[420334253,1775983832765,-450.90020573,0.00015932,2]
[420334255,1775983832781,-527.36515038,0.00015932,2]
[420334257,1775983832791,-527.36515038,0.00015932,2]
[420334259,1775983832803,-527.36515038,0.00015932,2]
[420334261,1775983832814,-527.36515038,0.00015932,2]
[420334263,1775983832831,-527.36515038,0.00015932,2]
[420334265,1775983832841,-527.36515038,0.00015932,2]
[420334267,1775983832860,-527.36515038,0.00015932,2]
[420334269,1775983832870,-527.36515038,0.00015932,2]
[420334271,1775983832879,-500.0,0.00015932,2]
[420334273,1775983832897,-500.0,0.00015932,2]
[420334275,1775983832908,-500.0,0.00015932,2]
[420334277,1775983832922,-500.0,0.00015932,2]
[420334279,1775983832937,-500.0,0.00015932,2]
[420334281,1775983832946,-256.29892235,0.00015932,2]
[420334388,1775983838487,-500.0,0.00015932,2]
[420334389,1775983838500,-500.0,0.00015932,2]
[420334390,1775983838511,-500.0,0.00015932,2]
[420334391,1775983838530,-500.0,0.00015932,2]
[420334392,1775983838539,-615.67636089,0.00015932,2]
[420334393,1775983838554,-4095.77647427,0.00015933,2]
[420334400,1775983841179,-126.99114229,0.00014245,2]
[420334407,1775983843431,-405.2799959,0.00014245,2]
[420334408,1775983843440,-20157.59091365,0.00015933,2]
[420334415,1775983846292,-500.0,0.00015931,2]
[420334416,1775983846312,-500.0,0.00015931,2]
[420334417,1775983846323,-634.25857566,0.00015931,2]
[420334418,1775983846334,-500.0,0.00015931,2]
[420334419,1775983846354,-500.0,0.00015931,2]
[420334420,1775983846364,-500.0,0.00015931,2]
[420334421,1775983846380,-500.0,0.00015931,2]
[420334422,1775983846395,-500.0,0.00015931,2]
[420334423,1775983846406,-601.4335442,0.00015931,2]
[420334424,1775983846423,-500.0,0.00015931,2]
[420334425,1775983846437,-500.0,0.00015931,2]
[420334426,1775983846450,-500.0,0.00015931,2]
[420334427,1775983846463,-11354.4188016,0.00015933,2]
[420334445,1775984544937,-500.0,5e-05,2]
[420334627,1775985041319,-831.2267479,4.9e-05,2]
[420334668,1775985043640,-2278.80907994,4.9e-05,2]
[420334681,1775985046482,-388.83257024,4.9e-05,2]
[420334682,1775985046493,-288.49993886,5e-05,2]
[420334683,1775985046682,-1647.08513262,7.6e-05,2]
[420334713,1775986232455,-300.0,6.999e-05,2]
[420334714,1775986232468,-300.0,6.999e-05,2]
[420334715,1775986232481,-300.0,6.999e-05,2]
[420334716,1775986232494,-519.0,6.999e-05,2]
[420334717,1775986232505,-14168.55,7e-05,2]
[420334718,1775986232534,-1358.07321189,7.6e-05,2]
[420334719,1775986232543,-177.0,9e-05,2]
[420334720,1775986232552,-4314.70237871,9.999e-05,2]
[420334721,1775986232593,-106.53852834,9.999e-05,2]
[420334722,1775986232602,-423.68124294,9.999e-05,2]
[420334723,1775986232612,-289.04817158,9.999e-05,2]
[420334724,1775986232636,-500.0,9.999e-05,2]
[420334725,1775986232646,-574.70262886,9.999e-05,2]
[420334726,1775986232655,-500.0,9.999e-05,2]
[420334727,1775986232665,-500.0,9.999e-05,2]
[420334728,1775986232678,-500.0,9.999e-05,2]
[420334729,1775986232693,-500.0,9.999e-05,2]
[420334730,1775986232703,-500.0,9.999e-05,2]
[420334731,1775986232712,-500.0,9.999e-05,2]
[420334732,1775986232722,-500.0,9.999e-05,2]
[420334733,1775986232736,-500.0,9.999e-05,2]
[420334734,1775986232746,-245.76208416,9.999e-05,2]
[420334735,1775986232755,-500.0,9.999e-05,2]
[420334736,1775986232767,-500.0,9.999e-05,2]
[420334737,1775986232789,-500.0,9.999e-05,2]
[420334738,1775986232798,-500.0,9.999e-05,2]
[420334739,1775986232808,-500.0,9.999e-05,2]
[420334740,1775986232824,-500.0,9.999e-05,2]
[420334741,1775986232833,-500.0,9.999e-05,2]
[420334742,1775986232843,-500.0,9.999e-05,2]
[420334743,1775986232856,-500.0,9.999e-05,2]
[420334744,1775986232873,-400.0,9.999e-05,2]
[420334745,1775986232883,-3411.70137871,0.0001,2]
[420334746,1775986232893,-24575.22332782,0.0001,2]
[420334772,1775986238816,-1134.089456,0.0001,2]
[420334773,1775986238832,-1026.00000002,0.0001,2]
[420334781,1775986239024,-7821.2022502,0.0001,2]
[420334836,1775986241624,-2313.8249448,0.0001,2]
[420334837,1775986241635,-484.0,0.0001,2]
[420334846,1775986243755,-565.45,0.0001,2]
[420334848,1775986243795,-443.0,0.0001,2]
[420334853,1775986243944,-2160.0,0.0001,2]
[420334856,1775986246710,-1431.46,0.0001,2]
[420334857,1775986246800,-3831.76328781,0.0001,2]
[420334858,1775986246950,-4972.768791,0.0001,2]
[420334859,1775986287215,-3272.37584732,0.0001,2]
[420334888,1775987431825,-770.72520287,8.813e-05,2]
[420334929,1775987438213,-1361.65902798,8.813e-05,2]
[420334965,1775987440602,-849.147395,8.813e-05,2]
[420335019,1775988066345,-596.35391901,7.811e-05,2]
[420335020,1775988066388,-1059.67231326,7.811e-05,2]
[420335021,1775988095541,-596.35391901,7.89e-05,2]
[420335072,1775988638490,-4412.30542841,7.206e-05,2]
[420335073,1775988638501,-522.0,7.206e-05,2]
[420335074,1775988638533,-5000.0,7.279e-05,2]
[420335075,1775988638543,-300.0,7.352e-05,2]
[420335076,1775988638557,-300.0,7.352e-05,2]
[420335077,1775988638584,-300.0,7.352e-05,2]
[420335078,1775988638595,-1082.0,7.352e-05,2]
[420335079,1775988638612,-2252.38015128,7.353e-05,2]
[420335080,1775988638628,-300.0,7.426e-05,2]
[420335081,1775988638655,-1799.9152028,7.782e-05,2]
[420335082,1775988638684,-500.0,8.051e-05,2]
[420335083,1775988638694,-500.0,8.051e-05,2]
[420335084,1775988638706,-500.0,8.051e-05,2]
[420335085,1775988638734,-420.0,8.087e-05,2]
[420335086,1775988638744,-164.34724604,8.335e-05,2]
[420335087,1775988638775,-151.0,8.486e-05,2]
[420335088,1775988638786,-1814.2669725,8.486e-05,2]
[420335089,1775988638799,-2103.102108,8.62e-05,2]
[420335090,1775988638818,-587.0,8.896e-05,2]
[420335091,1775988638829,-2103.102108,8.983e-05,2]
[420335092,1775988638841,-2103.102108,9.346e-05,2]
[420335093,1775988638866,-177.0,9.39e-05,2]
[420335094,1775988638876,-153.09908,9.589e-05,2]
[420335095,1775988638893,-688.03807686,9.601e-05,2]
[420335096,1775988638929,-2103.102108,9.709e-05,2]
[420335097,1775988638939,-250.0,9.716e-05,2]
[420335098,1775988638952,-562.10999498,9.999e-05,2]
[420335099,1775988638972,-500.0,9.999e-05,2]
[420335100,1775988638982,-500.0,9.999e-05,2]
[420335101,1775988638994,-500.0,9.999e-05,2]
[420335102,1775988639016,-500.0,9.999e-05,2]
[420335103,1775988639026,-500.0,9.999e-05,2]
[420335104,1775988639036,-500.0,9.999e-05,2]
[420335105,1775988639057,-500.0,9.999e-05,2]
[420335106,1775988639067,-500.0,9.999e-05,2]
[420335107,1775988639077,-500.0,9.999e-05,2]
[420335108,1775988639096,-444.41707223,9.999e-05,2]
[420335109,1775988639105,-500.0,9.999e-05,2]
[420335110,1775988639115,-500.0,9.999e-05,2]
[420335111,1775988639127,-500.0,9.999e-05,2]
[420335112,1775988639143,-500.0,9.999e-05,2]
[420335113,1775988639152,-511.09195056,9.999e-05,2]
[420335114,1775988639162,-500.0,9.999e-05,2]
[420335115,1775988639187,-500.0,9.999e-05,2]
[420335116,1775988639199,-500.0,9.999e-05,2]
[420335117,1775988639209,-450.0,9.999e-05,2]
[420335118,1775988639221,-9979.68086533,0.0001,2]
[420335155,1775988643328,-3872.88321488,0.0001,2]
[420335194,1775988646122,-4553.02931013,0.0001,2]
[420335196,1775988646135,-1015.40705035,0.0001,2]
[420335255,1775989832292,-1256.78638887,7.526e-05,2]
[420335256,1775989832319,-3743.21361113,7.526e-05,2]
[420335257,1775989832341,-526.0,7.526e-05,2]
[420335258,1775989832380,-5000.0,7.602e-05,2]
[420335259,1775989832393,-5000.0,7.679e-05,2]
[420335260,1775989832411,-300.0,7.756e-05,2]
[420335261,1775989832430,-300.0,7.756e-05,2]
[420335262,1775989832444,-300.0,7.756e-05,2]
[420335263,1775989832467,-265.374793,8.035e-05,2]
[420335265,1775989832483,-742.45941806,8.231e-05,2]
[420335267,1775989832499,-386.0,8.532e-05,2]
[420335268,1775989832512,-3042.2528063,9.024e-05,2]
[420335270,1775989832526,-45.61824631,9.996e-05,2]
[420335272,1775989832550,-131.38175369,9.996e-05,2]
[420335274,1775989832562,-373.21180457,9.999e-05,2]
[420335276,1775989832575,-11988.96728626,0.0001,2]
[420335277,1775989832593,-2501.07633631,0.0001,2]
[420335300,1775989838779,-1056.93707012,0.0001,2]
[420335363,1775989841323,-4239.6098873,0.0001,2]
[420335372,1775989843807,-1352.99176546,0.0001,2]
[420335397,1775989846583,-22309.32889199,0.0001,2]
[420335403,1775989846652,-19098.9304169,0.0001,2]
[420335405,1775989846664,-550.64610693,0.0001,2]
[420335407,1775989846675,-2200.38184329,0.0001,2]
[420335409,1775989846692,-151.36745,0.0001,2]
[420335411,1775989846705,-151.0,0.0001,2]
[420335413,1775989846719,-400.87286306,0.00010045,2]
[420335415,1775989846733,-2103.102108,0.00010072,2]
[420335417,1775989846747,-2103.102108,0.00010434,2]
[420335419,1775989846758,-151.0,0.00010813,2]
[420335421,1775989846776,-678.8183558,0.00010813,2]
[420335423,1775989846791,-152.779174,0.00010959,2]
[420335425,1775989846806,-1958.61869558,0.00011126,2]
[420335428,1775989846820,-4402.48517299,0.00011126,2]
[420335430,1775989846838,-254.58390719,0.00011126,2]
[420335432,1775989846854,-1017.31729315,0.00011126,2]
[420335434,1775989846870,-214.881172,0.00011126,2]
[420335436,1775989846889,-151.4648484,0.00011212,2]
[420335438,1775989846898,-4488.3652189,0.00011601,2]
[420335440,1775989846912,-204.0,0.00011996,2]